[Event "Titled Tuesday Blitz December 13 Early 2022"]
[White "Goryachkina, Aleksandra"]
[Black "Winterberg, Lukas"]
[WhiteFideId "4147103"]
[BlackFideId "24622702"]
[WhiteElo "2484"]
[BlackElo "2350"]
[Result "1-0"]
[Round "04"]
[TimeControl "180+1"]
[Date "2022.12.14"]
[WhiteClock "0:01:00"]
[BlackClock "0:00:44"]

1. e4 {[%clk 0:02:59]}  e6 {[%clk 0:02:56]} 2. d4 {[%clk 0:02:59]}  d5 {[%clk 0:02:56]} 3. Nc3 {[%clk 0:02:59]}  Nf6 {[%clk 0:02:55]} 4. Bg5 {[%clk 0:02:59]}  h6 {[%clk 0:02:55]} 5. Bxf6 {[%clk 0:02:52]}  Qxf6 {[%clk 0:02:56]} 6. exd5 {[%clk 0:02:49]}  Bb4 {[%clk 0:02:55]} 7. dxe6 {[%clk 0:02:47]}  Bxe6 {[%clk 0:02:56]} 8. Nf3 {[%clk 0:02:43]}  Nc6 {[%clk 0:02:57]} 9. Bb5 {[%clk 0:02:41]}  O-O {[%clk 0:02:57]} 10. O-O {[%clk 0:02:38]}  Rfd8 {[%clk 0:02:57]} 11. Bxc6 {[%clk 0:02:31]}  bxc6 {[%clk 0:02:58]} 12. Ne4 {[%clk 0:02:11]}  Qf4 {[%clk 0:02:55]} 13. Ng3 {[%clk 0:02:10]}  Bf8 {[%clk 0:02:52]} 14. c3 {[%clk 0:02:07]}  c5 {[%clk 0:02:49]} 15. Re1 {[%clk 0:02:04]}  Bg4 {[%clk 0:02:36]} 16. Re4 {[%clk 0:01:51]}  Bxf3 {[%clk 0:02:25]} 17. Rxf4 {[%clk 0:01:51]}  Bxd1 {[%clk 0:02:23]} 18. Rxd1 {[%clk 0:01:52]}  Rab8 {[%clk 0:02:19]} 19. b3 {[%clk 0:01:52]}  Bd6 {[%clk 0:01:49]} 20. Re4 {[%clk 0:01:50]}  g6 {[%clk 0:01:43]} 21. Kf1 {[%clk 0:01:45]}  Kg7 {[%clk 0:01:26]} 22. Ree1 {[%clk 0:01:40]}  cxd4 {[%clk 0:01:20]} 23. Rxd4 {[%clk 0:01:39]}  Bxg3 {[%clk 0:01:15]} 24. hxg3 {[%clk 0:01:38]}  Rxd4 {[%clk 0:01:15]} 25. cxd4 {[%clk 0:01:38]}  Kf6 {[%clk 0:01:10]} 26. Rc1 {[%clk 0:01:38]}  Rb7 {[%clk 0:01:06]} 27. Rc6+ {[%clk 0:01:36]}  Kf5 {[%clk 0:01:05]} 28. f3 {[%clk 0:01:36]}  a5 {[%clk 0:01:05]} 29. Rc5+ {[%clk 0:01:36]}  Ke6 {[%clk 0:01:05]} 30. Rxa5 {[%clk 0:01:36]}  Rb4 {[%clk 0:01:06]} 31. Rc5 {[%clk 0:01:23]}  Rxd4 {[%clk 0:00:56]} 32. Rxc7 {[%clk 0:01:23]}  Rd2 {[%clk 0:00:57]} 33. a4 {[%clk 0:01:22]}  Rb2 {[%clk 0:00:56]} 34. Rb7 {[%clk 0:01:22]}  f5 {[%clk 0:00:56]} 35. a5 {[%clk 0:01:21]}  Ra2 {[%clk 0:00:56]} 36. Rb6+ {[%clk 0:01:19]}  Kd5 {[%clk 0:00:56]} 37. Rxg6 {[%clk 0:01:18]}  Kd4 {[%clk 0:00:55]} 38. Rxh6 {[%clk 0:01:16]}  Rxa5 {[%clk 0:00:55]} 39. Rd6+ {[%clk 0:01:13]}  Ke3 {[%clk 0:00:55]} 40. Re6+ {[%clk 0:01:13]}  Kd2 {[%clk 0:00:55]} 41. f4 {[%clk 0:01:06]}  Kc3 {[%clk 0:00:55]} 42. Re5 {[%clk 0:01:05]}  Ra1+ {[%clk 0:00:52]} 43. Kf2 {[%clk 0:01:05]}  Kxb3 {[%clk 0:00:50]} 44. Rxf5 {[%clk 0:01:05]}  Kc4 {[%clk 0:00:51]} 45. Re5 {[%clk 0:01:05]}  Kd4 {[%clk 0:00:52]} 46. Re2 {[%clk 0:01:05]}  Ra7 {[%clk 0:00:49]} 47. g4 {[%clk 0:01:05]}  Kd3 {[%clk 0:00:48]} 48. g5 {[%clk 0:01:04]}  Ra4 {[%clk 0:00:48]} 49. g3 {[%clk 0:01:04]}  Ra1 {[%clk 0:00:48]} 50. g6 {[%clk 0:01:03]}  Rh1 {[%clk 0:00:47]} 51. Re7 {[%clk 0:01:01]}  Rh6 {[%clk 0:00:46]} 52. g7 {[%clk 0:01:00]}  Rg6 {[%clk 0:00:46]} 53. f5 {[%clk 0:01:00]}  Rxg7 {[%clk 0:00:44]} 54. Rxg7 {[%clk 0:01:00]} 1-0


[Site "https://www.chess.com"]

[Event "Titled Tuesday Blitz December 13 Early 2022"]
[White "Grunberg, Mihai-Lucian"]
[Black "Kuderinov, Kirill"]
[WhiteFideId "1204149"]
[BlackFideId "13701568"]
[WhiteElo "2363"]
[BlackElo "2459"]
[Result "1/2-1/2"]
[Round "04"]
[TimeControl "180+1"]
[Date "2022.12.14"]
[WhiteClock "0:00:08"]
[BlackClock "0:00:10"]

1. Nf3 {[%clk 0:02:57]}  Nf6 {[%clk 0:02:58]} 2. c4 {[%clk 0:02:57]}  e6 {[%clk 0:02:57]} 3. g3 {[%clk 0:02:56]}  d5 {[%clk 0:02:55]} 4. Bg2 {[%clk 0:02:57]}  Be7 {[%clk 0:02:54]} 5. O-O {[%clk 0:02:56]}  O-O {[%clk 0:02:55]} 6. d4 {[%clk 0:02:56]}  b6 {[%clk 0:02:46]} 7. Nc3 {[%clk 0:02:55]}  Bb7 {[%clk 0:02:44]} 8. Ne5 {[%clk 0:02:55]}  Nbd7 {[%clk 0:02:38]} 9. Qa4 {[%clk 0:02:53]}  Nxe5 {[%clk 0:02:31]} 10. dxe5 {[%clk 0:02:53]}  Ne4 {[%clk 0:02:32]} 11. cxd5 {[%clk 0:02:39]}  Nxc3 {[%clk 0:02:29]} 12. bxc3 {[%clk 0:02:39]}  exd5 {[%clk 0:02:28]} 13. Rd1 {[%clk 0:02:35]}  c6 {[%clk 0:02:09]} 14. e4 {[%clk 0:02:33]}  Qc8 {[%clk 0:02:08]} 15. exd5 {[%clk 0:02:31]}  cxd5 {[%clk 0:02:09]} 16. Ba3 {[%clk 0:02:19]}  Bxa3 {[%clk 0:02:04]} 17. Qxa3 {[%clk 0:02:18]}  Qe6 {[%clk 0:02:04]} 18. Qd6 {[%clk 0:02:12]}  Rac8 {[%clk 0:01:59]} 19. Bxd5 {[%clk 0:02:07]}  Bxd5 {[%clk 0:01:57]} 20. Rxd5 {[%clk 0:02:03]}  Rxc3 {[%clk 0:01:42]} 21. Rad1 {[%clk 0:01:53]}  Qf5 {[%clk 0:01:19]} 22. Qd7 {[%clk 0:01:28]}  Qxd7 {[%clk 0:00:53]} 23. Rxd7 {[%clk 0:01:27]}  Ra3 {[%clk 0:00:54]} 24. R1d2 {[%clk 0:01:24]}  Re8 {[%clk 0:00:51]} 25. Rc7 {[%clk 0:01:17]}  g5 {[%clk 0:00:46]} 26. Rdd7 {[%clk 0:01:15]}  Rf3 {[%clk 0:00:45]} 27. Kg2 {[%clk 0:01:01]}  Rf5 {[%clk 0:00:44]} 28. Rxa7 {[%clk 0:00:55]}  Rexe5 {[%clk 0:00:43]} 29. Rd2 {[%clk 0:00:41]}  Rb5 {[%clk 0:00:36]} 30. a4 {[%clk 0:00:40]}  Rb1 {[%clk 0:00:35]} 31. Ra2 {[%clk 0:00:38]}  Ra5 {[%clk 0:00:32]} 32. Rxa5 {[%clk 0:00:34]}  bxa5 {[%clk 0:00:33]} 33. Rc2 {[%clk 0:00:32]}  Rb4 {[%clk 0:00:33]} 34. Rc5 {[%clk 0:00:32]}  Rxa4 {[%clk 0:00:33]} 35. Rxg5+ {[%clk 0:00:32]}  Kf8 {[%clk 0:00:33]} 36. Rb5 {[%clk 0:00:31]}  Ra3 {[%clk 0:00:31]} 37. Rb7 {[%clk 0:00:31]}  Kg7 {[%clk 0:00:31]} 38. Rb6 {[%clk 0:00:30]}  Ra1 {[%clk 0:00:30]} 39. Ra6 {[%clk 0:00:30]}  a4 {[%clk 0:00:30]} 40. h4 {[%clk 0:00:30]}  a3 {[%clk 0:00:26]} 41. Kh2 {[%clk 0:00:30]}  h5 {[%clk 0:00:23]} 42. Kg2 {[%clk 0:00:29]}  f6 {[%clk 0:00:21]} 43. Kh2 {[%clk 0:00:28]}  Kg6 {[%clk 0:00:22]} 44. Kg2 {[%clk 0:00:27]}  Kf5 {[%clk 0:00:20]} 45. Ra5+ {[%clk 0:00:27]}  Kg6 {[%clk 0:00:21]} 46. Kh2 {[%clk 0:00:26]}  f5 {[%clk 0:00:18]} 47. Kg2 {[%clk 0:00:26]}  Kf6 {[%clk 0:00:18]} 48. Kf3 {[%clk 0:00:24]}  Ke6 {[%clk 0:00:16]} 49. Kf4 {[%clk 0:00:23]}  Rf1 {[%clk 0:00:11]} 50. Rxa3 {[%clk 0:00:21]}  Rxf2+ {[%clk 0:00:11]} 51. Kg5 {[%clk 0:00:21]}  Ke5 {[%clk 0:00:09]} 52. Kxh5 {[%clk 0:00:20]}  f4 {[%clk 0:00:07]} 53. gxf4+ {[%clk 0:00:18]}  Rxf4 {[%clk 0:00:06]} 54. Kg5 {[%clk 0:00:13]}  Rf5+ {[%clk 0:00:06]} 55. Kg6 {[%clk 0:00:12]}  Rf6+ {[%clk 0:00:06]} 56. Kg7 {[%clk 0:00:12]}  Rf4 {[%clk 0:00:06]} 57. h5 {[%clk 0:00:06]}  Rg4+ {[%clk 0:00:07]} 58. Kf7 {[%clk 0:00:06]}  Rh4 {[%clk 0:00:07]} 59. Kg6 {[%clk 0:00:04]}  Rg4+ {[%clk 0:00:07]} 60. Kh7 {[%clk 0:00:04]}  Kf6 {[%clk 0:00:07]} 61. h6 {[%clk 0:00:04]}  Rg1 {[%clk 0:00:07]} 62. Rf3+ {[%clk 0:00:04]}  Ke7 {[%clk 0:00:07]} 63. Kh8 {[%clk 0:00:04]}  Ke8 {[%clk 0:00:08]} 64. h7 {[%clk 0:00:05]}  Ke7 {[%clk 0:00:08]} 65. Rf4 {[%clk 0:00:05]}  Ke8 {[%clk 0:00:09]} 66. Rf3 {[%clk 0:00:05]}  Ke7 {[%clk 0:00:09]} 67. Rf4 {[%clk 0:00:05]}  Ke8 {[%clk 0:00:10]} 68. Re4+ {[%clk 0:00:05]}  Kf7 {[%clk 0:00:10]} 69. Ra4 {[%clk 0:00:06]}  Kf8 {[%clk 0:00:10]} 70. Ra8+ {[%clk 0:00:06]}  Kf7 {[%clk 0:00:11]} 71. Rg8 {[%clk 0:00:06]}  Rd1 {[%clk 0:00:10]} 72. Rg7+ {[%clk 0:00:06]}  Kf8 {[%clk 0:00:10]} 73. Rg8+ {[%clk 0:00:07]}  Kf7 {[%clk 0:00:10]} 74. Rg7+ {[%clk 0:00:07]}  Kf8 {[%clk 0:00:10]} 75. Rg2 {[%clk 0:00:07]}  Rf1 {[%clk 0:00:10]} 76. Rg8+ {[%clk 0:00:06]}  Kf7 {[%clk 0:00:10]} 77. Rg7+ {[%clk 0:00:07]}  Kf8 {[%clk 0:00:10]} 78. Rg8+ {[%clk 0:00:07]}  Kf7 {[%clk 0:00:10]} 79. Rg7+ {[%clk 0:00:08]}  Kf8 {[%clk 0:00:10]} 80. Rg8+ {[%clk 0:00:08]} 1/2-1/2


[Site "https://www.chess.com"]

[Event "Titled Tuesday Blitz December 13 Early 2022"]
[White "Haddouche, Mohamed"]
[Black "Nakamura, Hikaru"]
[WhiteFideId "7900660"]
[BlackFideId "2016192"]
[WhiteElo "2443"]
[BlackElo "2909"]
[Result "0-1"]
[Round "04"]
[TimeControl "180+1"]
[Date "2022.12.13"]
[WhiteClock "0:00:06"]
[BlackClock "0:01:09"]

1. e4 {[%clk 0:03:00]}  c6 {[%clk 0:02:58]} 2. d4 {[%clk 0:02:59]}  d5 {[%clk 0:02:58]} 3. e5 {[%clk 0:02:58]}  Bf5 {[%clk 0:02:58]} 4. h4 {[%clk 0:02:54]}  h5 {[%clk 0:02:58]} 5. c4 {[%clk 0:02:54]}  e6 {[%clk 0:02:55]} 6. Nc3 {[%clk 0:02:53]}  dxc4 {[%clk 0:02:54]} 7. Bxc4 {[%clk 0:02:50]}  Ne7 {[%clk 0:02:54]} 8. Nge2 {[%clk 0:02:44]}  Nd7 {[%clk 0:02:50]} 9. Ng3 {[%clk 0:02:41]}  Bg6 {[%clk 0:02:50]} 10. Bg5 {[%clk 0:02:41]}  Qb6 {[%clk 0:02:46]} 11. O-O {[%clk 0:02:21]}  Nf5 {[%clk 0:02:43]} 12. Nxf5 {[%clk 0:01:55]}  Bxf5 {[%clk 0:02:44]} 13. Bd3 {[%clk 0:01:55]}  Qxd4 {[%clk 0:02:32]} 14. Nb5 {[%clk 0:01:15]}  Qb6 {[%clk 0:01:55]} 15. Bxf5 {[%clk 0:00:46]}  cxb5 {[%clk 0:01:45]} 16. Be4 {[%clk 0:00:29]}  Be7 {[%clk 0:01:25]} 17. Bxe7 {[%clk 0:00:23]}  Kxe7 {[%clk 0:01:26]} 18. Qc2 {[%clk 0:00:24]}  Rhd8 {[%clk 0:01:14]} 19. Qd2 {[%clk 0:00:20]}  Kf8 {[%clk 0:01:09]} 20. Qg5 {[%clk 0:00:20]}  Qd4 {[%clk 0:01:09]} 21. Bxb7 {[%clk 0:00:08]}  Rab8 {[%clk 0:01:09]} 22. Rad1 {[%clk 0:00:06]}  Qxe5 {[%clk 0:01:09]} 23. Rxd7 {[%clk 0:00:06]}  Qxg5 {[%clk 0:01:09]} 0-1


[Site "https://www.chess.com"]

[Event "Titled Tuesday Blitz December 13 Early 2022"]
[White "Hamley, Ryan"]
[Black "D`Arruda, Ricardo D."]
[WhiteFideId "30959497"]
[BlackFideId "100692"]
[WhiteElo "2600"]
[BlackElo "2449"]
[Result "1-0"]
[Round "04"]
[TimeControl "180+1"]
[Date "2022.12.14"]
[WhiteClock "0:00:17"]
[BlackClock "0:00:05"]

1. e4 {[%clk 0:02:57]}  c5 {[%clk 0:02:58]} 2. Nf3 {[%clk 0:02:56]}  Nc6 {[%clk 0:02:58]} 3. Bb5 {[%clk 0:02:56]}  g6 {[%clk 0:02:58]} 4. c3 {[%clk 0:02:56]}  Bg7 {[%clk 0:02:54]} 5. O-O {[%clk 0:02:56]}  Nf6 {[%clk 0:02:53]} 6. Re1 {[%clk 0:02:55]}  O-O {[%clk 0:02:52]} 7. d4 {[%clk 0:02:55]}  cxd4 {[%clk 0:02:52]} 8. cxd4 {[%clk 0:02:56]}  d5 {[%clk 0:02:52]} 9. e5 {[%clk 0:02:56]}  Ne4 {[%clk 0:02:52]} 10. Be3 {[%clk 0:02:57]}  Bd7 {[%clk 0:02:49]} 11. Nbd2 {[%clk 0:02:48]}  Nxe5 {[%clk 0:02:33]} 12. Bxd7 {[%clk 0:02:27]}  Nxd7 {[%clk 0:02:34]} 13. Nxe4 {[%clk 0:02:23]}  dxe4 {[%clk 0:02:35]} 14. Ng5 {[%clk 0:02:24]}  Nf6 {[%clk 0:02:30]} 15. Qb3 {[%clk 0:02:23]}  Qd7 {[%clk 0:02:22]} 16. Rac1 {[%clk 0:02:12]}  h6 {[%clk 0:02:11]} 17. Nh3 {[%clk 0:02:09]}  Nd5 {[%clk 0:02:11]} 18. Nf4 {[%clk 0:01:58]}  e6 {[%clk 0:02:10]} 19. Red1 {[%clk 0:01:43]}  Rac8 {[%clk 0:02:01]} 20. h4 {[%clk 0:01:31]}  h5 {[%clk 0:01:42]} 21. Ne2 {[%clk 0:01:18]}  Rxc1 {[%clk 0:01:38]} 22. Bxc1 {[%clk 0:01:16]}  Rc8 {[%clk 0:01:36]} 23. Bg5 {[%clk 0:01:16]}  b5 {[%clk 0:01:28]} 24. Re1 {[%clk 0:01:05]}  a5 {[%clk 0:01:24]} 25. Ng3 {[%clk 0:01:01]}  f5 {[%clk 0:01:22]} 26. f3 {[%clk 0:01:00]}  Bxd4+ {[%clk 0:01:17]} 27. Kh1 {[%clk 0:00:59]}  Bf2 {[%clk 0:01:15]} 28. Rd1 {[%clk 0:00:57]}  e3 {[%clk 0:01:07]} 29. Ne2 {[%clk 0:00:50]}  Rc4 {[%clk 0:00:53]} 30. g3 {[%clk 0:00:45]}  Qc6 {[%clk 0:00:47]} 31. Qd3 {[%clk 0:00:43]}  Rc2 {[%clk 0:00:41]} 32. Nd4 {[%clk 0:00:39]}  e2 {[%clk 0:00:16]} 33. Nxc6 {[%clk 0:00:20]}  exd1=Q+ {[%clk 0:00:15]} 34. Qxd1 {[%clk 0:00:20]}  Rxc6 {[%clk 0:00:16]} 35. Kg2 {[%clk 0:00:21]}  Be3 {[%clk 0:00:15]} 36. Qd3 {[%clk 0:00:19]}  Kf7 {[%clk 0:00:11]} 37. Bxe3 {[%clk 0:00:19]}  Rc2+ {[%clk 0:00:11]} 38. Kh3 {[%clk 0:00:18]}  Nxe3 {[%clk 0:00:10]} 39. Qxe3 {[%clk 0:00:19]}  Rxb2 {[%clk 0:00:10]} 40. Qa7+ {[%clk 0:00:19]}  Kf8 {[%clk 0:00:08]} 41. Qxa5 {[%clk 0:00:18]}  Kf7 {[%clk 0:00:08]} 42. Qa7+ {[%clk 0:00:17]}  Kf8 {[%clk 0:00:08]} 43. Qa3+ {[%clk 0:00:17]}  b4 {[%clk 0:00:05]} 44. Qxb2 {[%clk 0:00:17]} 1-0


[Site "https://www.chess.com"]

[Event "Titled Tuesday Blitz December 13 Early 2022"]
[White "Hoffmann, Asa"]
[Black "Derjabin, Ilja"]
[WhiteFideId "2001470"]
[BlackFideId "14104768"]
[WhiteElo "2117"]
[BlackElo "2309"]
[Result "1-0"]
[Round "04"]
[TimeControl "180+1"]
[Date "2022.12.14"]
[WhiteClock "0:00:37"]
[BlackClock "0:00:12"]

1. d4 {[%clk 0:02:49]}  Nf6 {[%clk 0:02:58]} 2. Bg5 {[%clk 0:02:46]}  c5 {[%clk 0:02:59]} 3. d5 {[%clk 0:02:46]}  d6 {[%clk 0:02:58]} 4. Nc3 {[%clk 0:02:44]}  h6 {[%clk 0:02:57]} 5. Bh4 {[%clk 0:02:43]}  g5 {[%clk 0:02:55]} 6. Bg3 {[%clk 0:02:43]}  Qb6 {[%clk 0:02:53]} 7. Rb1 {[%clk 0:02:42]}  Nh5 {[%clk 0:02:50]} 8. e4 {[%clk 0:02:41]}  Nxg3 {[%clk 0:02:42]} 9. hxg3 {[%clk 0:02:40]}  Bg7 {[%clk 0:02:43]} 10. Bd3 {[%clk 0:02:35]}  Nd7 {[%clk 0:02:39]} 11. Nge2 {[%clk 0:02:34]}  Ne5 {[%clk 0:02:37]} 12. f4 {[%clk 0:02:23]}  Ng4 {[%clk 0:02:29]} 13. Bb5+ {[%clk 0:02:18]}  Kf8 {[%clk 0:02:28]} 14. Qd2 {[%clk 0:02:08]}  c4 {[%clk 0:02:20]} 15. Rf1 {[%clk 0:02:06]}  a6 {[%clk 0:02:16]} 16. Bxc4 {[%clk 0:02:04]}  Ne3 {[%clk 0:02:09]} 17. Bb3 {[%clk 0:02:02]}  Nxg2+ {[%clk 0:02:05]} 18. Kd1 {[%clk 0:01:56]}  Ne3+ {[%clk 0:02:06]} 19. Ke1 {[%clk 0:01:55]}  Nxf1 {[%clk 0:01:44]} 20. Kxf1 {[%clk 0:01:54]}  Bh3+ {[%clk 0:01:43]} 21. Ke1 {[%clk 0:01:51]}  Rc8 {[%clk 0:01:44]} 22. Qd3 {[%clk 0:01:42]}  Rg8 {[%clk 0:01:36]} 23. Kd2 {[%clk 0:01:40]}  Qf2 {[%clk 0:01:27]} 24. Rh1 {[%clk 0:01:35]}  Bg4 {[%clk 0:01:22]} 25. fxg5 {[%clk 0:01:27]}  h5 {[%clk 0:01:07]} 26. e5 {[%clk 0:01:26]}  Bxe5 {[%clk 0:01:02]} 27. Ne4 {[%clk 0:01:24]}  Qb6 {[%clk 0:00:45]} 28. Rf1 {[%clk 0:01:16]}  Bxb2 {[%clk 0:00:42]} 29. c3 {[%clk 0:01:11]}  Qa5 {[%clk 0:00:33]} 30. Nf4 {[%clk 0:01:03]}  Rg7 {[%clk 0:00:28]} 31. Ne6+ {[%clk 0:01:00]}  Bxe6 {[%clk 0:00:26]} 32. dxe6 {[%clk 0:01:00]}  Rxg5 {[%clk 0:00:22]} 33. Rxf7+ {[%clk 0:00:54]}  Kg8 {[%clk 0:00:21]} 34. Nf6+ {[%clk 0:00:38]}  exf6 {[%clk 0:00:12]} 35. Qh7# {[%clk 0:00:37]} 1-0


[Site "https://www.chess.com"]

[Event "Titled Tuesday Blitz December 13 Early 2022"]
[White "Ibarra Jerez, Jose Carlos"]
[Black "Martinez Ramirez, Lennis"]
[WhiteFideId "2226332"]
[BlackFideId "3509079"]
[WhiteElo "2899"]
[BlackElo "2605"]
[Result "0-1"]
[Round "04"]
[TimeControl "180+1"]
[Date "2022.12.14"]
[WhiteClock "0:00:04"]
[BlackClock "0:00:17"]

1. Nf3 {[%clk 0:02:59]}  d5 {[%clk 0:02:59]} 2. g3 {[%clk 0:02:58]}  Nf6 {[%clk 0:02:58]} 3. Bg2 {[%clk 0:02:59]}  c6 {[%clk 0:02:58]} 4. O-O {[%clk 0:02:59]}  Bf5 {[%clk 0:02:58]} 5. d3 {[%clk 0:02:59]}  e6 {[%clk 0:02:58]} 6. c4 {[%clk 0:02:59]}  Bd6 {[%clk 0:02:58]} 7. Nc3 {[%clk 0:02:57]}  Qc7 {[%clk 0:02:55]} 8. cxd5 {[%clk 0:02:55]}  Nxd5 {[%clk 0:02:51]} 9. e4 {[%clk 0:02:50]}  Nxc3 {[%clk 0:02:51]} 10. bxc3 {[%clk 0:02:51]}  Bg4 {[%clk 0:02:51]} 11. d4 {[%clk 0:02:44]}  e5 {[%clk 0:02:51]} 12. dxe5 {[%clk 0:02:38]}  Bxe5 {[%clk 0:02:51]} 13. Ba3 {[%clk 0:02:39]}  Nd7 {[%clk 0:02:50]} 14. Qb3 {[%clk 0:02:26]}  Be6 {[%clk 0:02:47]} 15. Qb2 {[%clk 0:02:17]}  O-O-O {[%clk 0:02:44]} 16. Nd4 {[%clk 0:02:06]}  Bc4 {[%clk 0:02:23]} 17. Rfd1 {[%clk 0:02:04]}  Nb6 {[%clk 0:02:13]} 18. f4 {[%clk 0:01:52]}  Bd6 {[%clk 0:02:13]} 19. Bxd6 {[%clk 0:01:44]}  Rxd6 {[%clk 0:02:14]} 20. e5 {[%clk 0:01:45]}  Rg6 {[%clk 0:02:09]} 21. Nf5 {[%clk 0:01:25]}  Bd5 {[%clk 0:02:08]} 22. Qa3 {[%clk 0:01:20]}  Kb8 {[%clk 0:02:07]} 23. Rab1 {[%clk 0:01:13]}  h5 {[%clk 0:02:05]} 24. Nd6 {[%clk 0:00:46]}  h4 {[%clk 0:02:01]} 25. f5 {[%clk 0:00:41]}  Rg4 {[%clk 0:01:53]} 26. Rd4 {[%clk 0:00:41]}  Rxd4 {[%clk 0:01:34]} 27. cxd4 {[%clk 0:00:42]}  hxg3 {[%clk 0:01:35]} 28. Qxg3 {[%clk 0:00:35]}  f6 {[%clk 0:01:35]} 29. Bxd5 {[%clk 0:00:28]}  cxd5 {[%clk 0:01:35]} 30. Nb5 {[%clk 0:00:29]}  Qc2 {[%clk 0:01:25]} 31. exf6+ {[%clk 0:00:27]}  Ka8 {[%clk 0:01:25]} 32. Nc7+ {[%clk 0:00:27]}  Kb8 {[%clk 0:01:25]} 33. Nxd5+ {[%clk 0:00:27]}  Ka8 {[%clk 0:01:25]} 34. Nc7+ {[%clk 0:00:16]}  Kb8 {[%clk 0:01:24]} 35. Nb5+ {[%clk 0:00:16]}  Ka8 {[%clk 0:01:24]} 36. Na3 {[%clk 0:00:13]}  Qd2 {[%clk 0:01:15]} 37. fxg7 {[%clk 0:00:13]}  Qxd4+ {[%clk 0:01:16]} 38. Kh1 {[%clk 0:00:10]}  Rg8 {[%clk 0:01:12]} 39. Rg1 {[%clk 0:00:07]}  Qe4+ {[%clk 0:01:11]} 40. Qg2 {[%clk 0:00:07]}  Qxf5 {[%clk 0:01:12]} 41. Nc2 {[%clk 0:00:05]}  Nd5 {[%clk 0:01:10]} 42. Rf1 {[%clk 0:00:04]}  Nf4 {[%clk 0:01:07]} 43. Ne3 {[%clk 0:00:04]}  Qe5 {[%clk 0:01:02]} 44. Qf3 {[%clk 0:00:05]}  Qxg7 {[%clk 0:00:19]} 45. Qxf4 {[%clk 0:00:05]}  a6 {[%clk 0:00:20]} 46. Qf3 {[%clk 0:00:06]}  Qh6 {[%clk 0:00:20]} 47. Nf5 {[%clk 0:00:05]}  Qg5 {[%clk 0:00:19]} 48. Ng3 {[%clk 0:00:05]}  Rh8 {[%clk 0:00:19]} 49. Rb1 {[%clk 0:00:05]}  Rh7 {[%clk 0:00:19]} 50. Qf8+ {[%clk 0:00:05]}  Ka7 {[%clk 0:00:18]} 51. Qf2+ {[%clk 0:00:05]}  Ka8 {[%clk 0:00:19]} 52. Rf1 {[%clk 0:00:03]}  Qd5+ {[%clk 0:00:19]} 53. Qf3 {[%clk 0:00:03]}  Qxa2 {[%clk 0:00:18]} 54. Qf8+ {[%clk 0:00:04]}  Ka7 {[%clk 0:00:19]} 55. Qc5+ {[%clk 0:00:04]}  b6 {[%clk 0:00:18]} 56. Qe5 {[%clk 0:00:04]}  Qxh2# {[%clk 0:00:17]} 0-1


[Site "https://www.chess.com"]

[Event "Titled Tuesday Blitz December 13 Early 2022"]
[White "Itkis, Boris"]
[Black "Kuzmin, Roman"]
[WhiteFideId "1209167"]
[BlackFideId "44134932"]
[WhiteElo "2216"]
[BlackElo "2180"]
[Result "0-1"]
[Round "04"]
[TimeControl "180+1"]
[Date "2022.12.14"]
[WhiteClock "0:00:06"]
[BlackClock "0:00:19"]

1. c4 {[%clk 0:03:00]}  e6 {[%clk 0:02:59]} 2. Nf3 {[%clk 0:03:00]}  d5 {[%clk 0:03:00]} 3. g3 {[%clk 0:03:01]}  Nf6 {[%clk 0:03:00]} 4. Bg2 {[%clk 0:03:01]}  Be7 {[%clk 0:03:01]} 5. O-O {[%clk 0:03:02]}  O-O {[%clk 0:03:01]} 6. b3 {[%clk 0:03:02]}  Nbd7 {[%clk 0:03:00]} 7. Bb2 {[%clk 0:03:02]}  c6 {[%clk 0:03:00]} 8. e3 {[%clk 0:03:02]}  b6 {[%clk 0:03:00]} 9. Qe2 {[%clk 0:02:57]}  Ba6 {[%clk 0:03:00]} 10. Ne1 {[%clk 0:02:55]}  e5 {[%clk 0:02:58]} 11. f4 {[%clk 0:02:47]}  Bd6 {[%clk 0:02:58]} 12. d3 {[%clk 0:02:44]}  Re8 {[%clk 0:02:57]} 13. f5 {[%clk 0:02:34]}  e4 {[%clk 0:02:48]} 14. d4 {[%clk 0:01:56]}  c5 {[%clk 0:02:47]} 15. Kh1 {[%clk 0:01:54]}  cxd4 {[%clk 0:02:47]} 16. exd4 {[%clk 0:01:54]}  Rc8 {[%clk 0:02:45]} 17. Na3 {[%clk 0:01:34]}  Bxa3 {[%clk 0:02:30]} 18. Bxa3 {[%clk 0:01:34]}  dxc4 {[%clk 0:02:31]} 19. Rc1 {[%clk 0:01:34]}  b5 {[%clk 0:02:29]} 20. Nc2 {[%clk 0:01:19]}  Nd5 {[%clk 0:02:16]} 21. Nb4 {[%clk 0:01:14]}  Nxb4 {[%clk 0:02:15]} 22. Bxb4 {[%clk 0:01:15]}  Nf6 {[%clk 0:02:14]} 23. Bc5 {[%clk 0:00:55]}  Rc6 {[%clk 0:01:56]} 24. g4 {[%clk 0:00:35]}  cxb3 {[%clk 0:01:54]} 25. axb3 {[%clk 0:00:35]}  b4 {[%clk 0:01:54]} 26. Qf2 {[%clk 0:00:20]}  Nxg4 {[%clk 0:01:51]} 27. Qg3 {[%clk 0:00:18]}  Bxf1 {[%clk 0:01:47]} 28. Rxf1 {[%clk 0:00:17]}  Nf6 {[%clk 0:01:44]} 29. Rg1 {[%clk 0:00:16]}  Nh5 {[%clk 0:01:35]} 30. Qg4 {[%clk 0:00:15]}  Rh6 {[%clk 0:01:33]} 31. Bxe4 {[%clk 0:00:11]}  Qc7 {[%clk 0:01:22]} 32. Bf3 {[%clk 0:00:10]}  f6 {[%clk 0:00:52]} 33. Bxb4 {[%clk 0:00:06]}  Qf4 {[%clk 0:00:23]} 34. Qxf4 {[%clk 0:00:05]}  Nxf4 {[%clk 0:00:23]} 35. Bd2 {[%clk 0:00:06]}  Rh4 {[%clk 0:00:23]} 36. Bxf4 {[%clk 0:00:05]}  Rxf4 {[%clk 0:00:24]} 37. Bd5+ {[%clk 0:00:06]}  Kf8 {[%clk 0:00:23]} 38. Bc4 {[%clk 0:00:05]}  Rxf5 {[%clk 0:00:22]} 39. Ra1 {[%clk 0:00:06]}  Rf2 {[%clk 0:00:20]} 40. Rxa7 {[%clk 0:00:06]}  Re1+ {[%clk 0:00:19]} 0-1


[Site "https://www.chess.com"]